bitfinex/quotes_SOLUSD_20250108
["timestamp","ask_amount","ask_price","bid_price","bid_amount"]
[1736379007373,17.88595883,197.94,197.87,171.12687075]
[1736379007577,17.88595883,197.94,197.87,170.36911491]
[1736379007886,7.92680191,197.94,197.88,9.95915692]
[1736379008071,7.92680191,197.94,197.89,0.75762839]
[1736379008274,9.95915692,197.96,197.89,0.75762839]
[1736379008875,9.95915692,197.96,197.89,171.1267433]
[1736379009081,7.92680191,198.0,197.89,180.32827183]
[1736379009278,9.95915692,197.96,197.89,180.32827183]
[1736379010923,9.95915692,197.96,197.9,0.75760316]
[1736379011095,9.95915692,197.96,197.9,171.12671807]
[1736379011294,9.95915692,197.96,197.9,170.36911491]
[1736379011495,9.95915692,197.97,197.9,180.32827183]
[1736379011898,9.95915692,197.97,197.91,0.75758941]
[1736379016230,9.95915692,197.97,197.91,171.12670432]
[1736379016408,9.95915692,197.97,197.91,170.36911491]
[1736379023807,9.95915692,197.94,197.91,170.36911491]
[1736379024209,9.95915692,197.93,197.91,170.36911491]
[1736379028322,9.95915692,197.94,197.91,170.36911491]
[1736379029099,9.95915692,197.92,197.91,170.36911491]
[1736379029302,33.73604092,197.92,197.91,32.09911491]
[1736379030330,23.776884,197.91,197.84,170.36911491]
[1736379030509,9.95915692,197.85,197.84,170.36911491]
[1736379036136,9.95915692,197.85,197.79,170.36911491]
[1736379036321,9.95915692,197.83,197.79,170.36911491]
[1736379042426,9.95915692,197.84,197.79,170.36911491]
[1736379045048,9.95915692,197.83,197.79,170.36911491]
[1736379051442,9.95915692,197.84,197.79,170.36911491]
[1736379053260,23.776884,197.86,197.79,170.36911491]
[1736379053441,9.95915692,197.84,197.79,170.36911491]
[1736379054459,9.95915692,197.83,197.79,170.36911491]
[1736379061577,23.776884,197.86,197.79,170.36911491]
[1736379061741,9.95915692,197.83,197.79,170.36911491]
[1736379062675,23.776884,197.86,197.79,170.36911491]
[1736379063163,9.95915692,197.84,197.79,170.36911491]
[1736379064975,23.776884,197.86,197.79,170.36911491]
[1736379065275,9.95915692,197.83,197.79,170.36911491]
[1736379066577,1.5395,197.93,197.79,170.36911491]
[1736379066758,9.95915692,197.86,197.79,170.36911491]
[1736379068385,23.776884,197.91,197.79,170.36911491]
[1736379068596,9.95915692,197.86,197.79,170.36911491]
[1736379074668,23.776884,197.91,197.79,170.36911491]
[1736379074870,9.95915692,197.86,197.79,170.36911491]
[1736379089707,9.95915692,197.84,197.79,170.36911491]
[1736379090076,9.95915692,197.82,197.79,170.36911491]
[1736379093412,23.776884,197.85,197.79,170.36911491]
[1736379093727,9.95915692,197.81,197.79,170.36911491]
[1736379096113,80.2249686,197.8,197.74,32.09911491]
[1736379096319,33.73604092,197.75,197.74,19.440158]
[1736379096628,33.73604092,197.75,197.64,14.47740589]
[1736379096629,20.0,197.71,197.64,188.18464453]
[1736379096814,9.95915692,197.68,197.64,188.18464453]
[1736379097332,1.5522,197.72,197.64,180.23623864]
[1736379097333,9.95915692,197.65,197.64,180.23623864]
[1736379098003,9.95915692,197.65,197.64,81.6]
[1736379099905,14.8657,197.7,197.64,81.6]
[1736379100228,9.95915692,197.65,197.64,81.6]
[1736379108925,33.73604092,197.65,197.64,81.6]
[1736379110352,20.0,197.61,197.54,180.23623864]
[1736379110662,9.95915692,197.56,197.54,180.23623864]
[1736379110866,23.776884,197.62,197.54,180.23623864]
[1736379111049,9.95915692,197.55,197.54,180.23623864]
[1736379113467,9.95915692,197.56,197.54,180.23623864]
[1736379115043,9.95915692,197.57,197.54,180.23623864]
[1736379127685,9.95915692,197.55,197.54,180.23623864]
[1736379127860,9.95915692,197.55,197.54,81.6]
[1736379128982,33.73604092,197.55,197.54,81.6]
[1736379130285,23.776884,197.54,197.49,180.23623864]
[1736379130486,9.95915692,197.5,197.49,180.23623864]
[1736379130691,9.95915692,197.5,197.49,81.6]
[1736379132893,23.776884,197.55,197.49,81.6]
[1736379133099,9.95915692,197.5,197.49,81.6]
[1736379133969,14.2217,197.58,197.49,180.23623864]
[1736379134175,9.95915692,197.52,197.49,180.23623864]
[1736379142896,9.95915692,197.51,197.49,180.23623864]
[1736379154415,9.95915692,197.53,197.49,180.23623864]
[1736379158631,26.016884,197.57,197.49,180.23623864]
[1736379158922,9.95915692,197.53,197.49,180.23623864]
[1736379169044,9.95915692,197.51,197.49,180.23623864]
[1736379178546,7.93373795,197.56,197.49,180.23623864]
[1736379178862,9.95915692,197.52,197.49,180.23623864]
[1736379186171,9.95915692,197.53,197.49,180.23623864]
[1736379186542,9.95915692,197.52,197.49,180.23623864]
[1736379194080,9.95915692,197.53,197.49,180.23623864]
[1736379207995,9.95915692,197.54,197.49,180.23623864]
[1736379223023,7.93373795,197.59,197.52,200.23623864]
[1736379223227,7.93373795,197.59,197.53,180.99522697]
[1736379223407,7.93373795,197.59,197.54,2.22]
[1736379223722,1.5859,197.63,197.55,180.99521588]
[1736379223925,1.5859,197.68,197.56,180.99514524]
[1736379224103,1.5859,197.68,197.57,190.95424072]
[1736379224301,9.95915692,197.65,197.58,180.99502177]
[1736379224505,9.95915692,197.66,197.61,20.0]
[1736379224707,9.95915692,197.66,197.61,22.22]
[1736379224909,1.5859,197.68,197.61,22.22]
[1736379225224,9.95915692,197.66,197.61,22.22]
[1736379225396,9.95915692,197.65,197.61,22.22]
[1736379226112,9.95915692,197.66,197.61,22.22]
[1736379227006,1.5859,197.68,197.61,22.22]
[1736379227215,9.95915692,197.66,197.61,22.22]
[1736379228841,9.95915692,197.66,197.61,202.45623864]
[1736379230232,1.5859,197.68,197.61,202.45623864]
[1736379230524,9.95915692,197.66,197.61,202.45623864]
[1736379231022,1.5859,197.68,197.61,202.45623864]
[1736379231210,9.95915692,197.66,197.61,202.45623864]
[1736379232327,1.5859,197.68,197.61,202.45623864]
[1736379232526,9.95915692,197.66,197.61,202.45623864]
[1736379233633,7.95410464,197.74,197.69,200.23623864]
[1736379233932,7.95410464,197.74,197.73,20.0]
[1736379234224,7.95410464,197.74,197.73,0.75836209]
[1736379234427,9.95915692,197.81,197.73,180.99460073]
[1736379234628,9.95915692,197.81,197.74,0.75820143]
[1736379235332,9.95915692,197.79,197.75,2.22]
[1736379235534,9.95915692,197.77,197.76,2.22]
[1736379235829,9.95915692,197.77,197.74,180.23623864]
[1736379236030,9.95915692,197.77,197.75,2.22]
[1736379238436,9.95915692,197.77,197.74,180.23623864]
[1736379238640,9.95915692,197.77,197.76,2.22]
[1736379239120,9.95915692,197.77,197.74,180.23623864]
[1736379239331,9.95915692,197.77,197.76,2.22]
[1736379239528,9.95915692,197.77,197.74,180.23623864]
[1736379239719,9.95915692,197.77,197.75,2.22]
[1736379240842,9.95915692,197.77,197.75,182.45623864]
[1736379241441,36.413984,197.83,197.75,182.45623864]
[1736379241621,9.95915692,197.76,197.75,182.45623864]
[1736379244444,9.95915692,197.76,197.75,180.23623864]
[1736379244630,9.95915692,197.76,197.75,182.45623864]
[1736379250150,1.6261,197.84,197.75,182.45623864]
[1736379250151,9.95915692,197.82,197.75,182.45623864]
[1736379250436,9.95915692,197.82,197.76,0.75814917]
[1736379250638,9.95915692,197.81,197.76,0.75814917]
[1736379250838,1.6261,197.84,197.76,0.75814917]
[1736379250839,9.95915692,197.82,197.76,0.75814917]
[1736379252727,9.95915692,197.83,197.76,180.99438781]
[1736379252923,9.95915692,197.81,197.77,100.85623864]
[1736379253128,9.95915692,197.79,197.77,180.23623864]
[1736379254440,6.5116,197.87,197.77,180.23623864]
[1736379254441,20.0,197.83,197.77,180.23623864]
[1736379254658,9.95915692,197.79,197.77,180.23623864]
[1736379255334,23.776884,197.82,197.77,180.23623864]
[1736379255534,9.95915692,197.79,197.77,180.23623864]
[1736379257348,23.776884,197.82,197.77,180.23623864]
[1736379257536,9.95915692,197.79,197.77,180.23623864]
[1736379260456,23.776884,197.82,197.77,180.23623864]
[1736379260634,9.95915692,197.79,197.77,180.23623864]
[1736379283975,9.95915692,197.81,197.77,180.23623864]
[1736379285392,20.0,197.83,197.77,180.23623864]
[1736379285561,9.95915692,197.83,197.77,180.23623864]
[1736379285962,17.91326156,197.83,197.77,180.23623864]
[1736379286882,9.95915692,197.83,197.77,180.23623864]
[1736379288483,9.95915692,197.81,197.77,180.23623864]
[1736379304409,33.73604092,197.78,197.77,81.6]
[1736379304586,23.776884,197.77,197.7,180.23623864]
[1736379304793,9.95915692,197.71,197.7,180.23623864]
[1736379317886,23.776884,197.77,197.7,180.23623864]
[1736379318109,49.38193232,197.8,197.7,180.23623864]
[1736379318110,9.54530464,197.8,197.7,180.23623864]
[1736379318401,1.5912,197.8,197.7,180.23623864]
[1736379318608,9.95915692,197.75,197.7,180.23623864]
[1736379318812,1.5912,197.8,197.71,180.9946302]
[1736379319102,9.95915692,197.78,197.71,180.23623864]
[1736379319307,9.95915692,197.78,197.72,0.75830021]
[1736379319505,9.95915692,197.78,197.72,180.99453885]
[1736379319686,9.95915692,197.78,197.72,180.23623864]
[1736379319886,9.95915692,197.78,197.73,0.75831736]
[1736379321610,1.6629,197.85,197.73,190.95371292]
[1736379321798,9.95915692,197.82,197.73,190.19539556]
[1736379321991,9.95915692,197.82,197.74,0.75820001]
[1736379322232,1.6629,197.85,197.74,180.99443865]
[1736379322398,9.95915692,197.83,197.76,9.95915692]
[1736379322712,9.95915692,197.83,197.77,183.21432668]
[1736379322927,9.95915692,197.83,197.77,182.45623864]
[1736379323215,9.95915692,197.83,197.78,0.7580848]
[1736379326110,9.95915692,197.83,197.78,2.9780848]
[1736379327613,9.95915692,197.83,197.78,183.21432344]
[1736379327816,9.95915692,197.83,197.78,182.45623864]
[1736379331104,9.95915692,197.83,197.78,180.23623864]
[1736379331313,9.95915692,197.8,197.78,180.23623864]
[1736379336827,9.95915692,197.79,197.78,180.23623864]
[1736379337426,6.614,197.83,197.78,81.6]
[1736379337636,1.511,197.78,197.73,180.23623864]
[1736379337837,9.95915692,197.74,197.73,180.23623864]
[1736379338010,1.511,197.78,197.73,180.23623864]
[1736379338211,9.95915692,197.74,197.73,180.23623864]
[1736379339614,9.95915692,197.74,197.73,81.6]
[1736379340504,22.60215692,197.74,197.69,81.6]
[1736379340710,9.95915692,197.7,197.69,81.6]
[1736379346854,56.1372846,197.7,197.69,81.6]
[1736379352280,56.1372846,197.7,197.61,180.23623864]
[1736379352464,9.95915692,197.64,197.61,180.23623864]
[1736379352663,9.95915692,197.65,197.61,180.23623864]
[1736379353956,9.95915692,197.66,197.61,180.23623864]
[1736379360440,6.3415,197.7,197.61,180.23623864]
[1736379360645,9.95915692,197.66,197.61,180.23623864]
[1736379376162,9.95915692,197.69,197.62,24.53574472]
[1736379376361,1.6246,197.71,197.66,180.23623864]
[1736379376583,9.95915692,197.73,197.66,180.23623864]
[1736379376766,1.6421,197.76,197.67,214.73085965]
[1736379376960,9.95915692,197.76,197.7,200.23623864]
[1736379377158,1.6421,197.8,197.72,204.01312264]
[1736379377358,9.95915692,197.79,197.74,23.776884]
[1736379377578,9.95915692,197.81,197.74,204.01312264]
[1736379377877,7.95410464,197.84,197.78,180.23623864]
[1736379378083,7.95410464,197.84,197.79,2.22]
[1736379378287,9.95915692,197.84,197.79,2.22]
[1736379379186,9.95915692,197.84,197.78,180.23623864]
[1736379379477,9.95915692,197.84,197.79,182.45623864]
[1736379380277,1.6375,197.88,197.79,182.45623864]
[1736379380484,9.95915692,197.85,197.79,182.45623864]
[1736379381572,9.95915692,197.84,197.79,182.45623864]
[1736379383465,9.95915692,197.84,197.79,180.23623864]
[1736379383668,14.2715,197.88,197.79,180.23623864]
[1736379383993,9.95915692,197.82,197.79,180.23623864]
[1736379384885,9.95915692,197.84,197.79,180.23623864]
[1736379385081,14.2715,197.88,197.79,180.23623864]
[1736379385288,9.95915692,197.84,197.79,180.23623864]
[1736379386274,14.2715,197.88,197.79,180.23623864]
[1736379386792,9.95915692,197.84,197.79,180.23623864]
[1736379389976,14.2715,197.88,197.79,180.23623864]
[1736379390287,9.95915692,197.84,197.79,180.23623864]
[1736379392292,14.2715,197.88,197.79,180.23623864]
[1736379392488,9.95915692,197.85,197.79,180.23623864]
[1736379392784,9.95915692,197.84,197.79,180.23623864]
[1736379396715,9.95915692,197.82,197.79,180.23623864]
[1736379402125,9.95915692,197.8,197.79,180.23623864]
[1736379402314,9.95915692,197.8,197.79,81.6]
[1736379402710,12.6359,197.85,197.79,81.6]
[1736379403026,9.95915692,197.8,197.79,81.6]
[1736379403403,9.95915692,197.8,197.73,98.63623864]
[1736379403404,51.3782846,197.8,197.73,180.23623864]
[1736379403605,9.95915692,197.74,197.73,81.6]
[1736379404721,9.95915692,197.74,197.68,180.23623864]
[1736379404935,9.95915692,197.69,197.68,81.6]
[1736379405631,9.95915692,197.69,197.6,180.23623864]
[1736379405845,9.95915692,197.65,197.6,180.23623864]
[1736379408401,9.95915692,197.66,197.6,180.23623864]
[1736379409509,9.95915692,197.64,197.6,180.23623864]
[1736379415030,9.95915692,197.66,197.6,180.23623864]
[1736379415946,29.95915692,197.69,197.6,190.19539556]
[1736379419940,29.95915692,197.69,197.6,180.23623864]
[1736379420242,29.95915692,197.69,197.6,190.19539556]
[1736379420416,9.95915692,197.69,197.61,204.77192009]
[1736379420616,9.95915692,197.69,197.61,204.01312264]
[1736379420816,9.95915692,197.69,197.62,0.7587341]
[1736379426524,9.95915692,197.69,197.62,180.99497274]
[1736379426721,9.95915692,197.69,197.62,180.23623864]
[1736379433350,31.51955692,197.71,197.62,180.23623864]
[1736379433855,21.5604,197.71,197.62,180.23623864]
[1736379434548,9.95915692,197.74,197.63,204.77184794]
[1736379434750,11.62435692,197.76,197.67,204.01312264]
[1736379434947,9.95915692,197.76,197.69,23.776884]
[1736379436349,6.042,197.79,197.69,23.776884]
[1736379436548,9.95915692,197.76,197.71,204.01312264]
[1736379436853,9.95915692,197.78,197.71,204.01312264]
[1736379437049,9.95915692,197.78,197.73,204.01312264]
[1736379437424,9.95915692,197.8,197.75,204.01312264]
[1736379437736,20.0,197.85,197.75,216.21227956]
[1736379437935,9.95915692,197.83,197.75,206.25312264]
[1736379438134,9.95915692,197.83,197.75,216.21227956]
[1736379439531,9.95915692,197.83,197.77,23.776884]
[1736379439951,20.0,197.85,197.77,23.776884]
[1736379440126,9.95915692,197.83,197.77,23.776884]
[1736379440638,1.6389,197.86,197.77,204.01312264]
[1736379440954,9.95915692,197.83,197.77,204.01312264]
[1736379442444,1.6389,197.86,197.77,204.01312264]
[1736379442652,9.95915692,197.83,197.77,204.01312264]
[1736379443752,12.6327,197.9,197.79,23.776884]
[1736379444061,9.95915692,197.85,197.79,204.01312264]
[1736379446162,19.252393,197.92,197.79,204.01312264]
[1736379446358,20.0,197.89,197.81,23.776884]
[1736379446567,9.95915692,197.88,197.83,23.776884]
[1736379448171,1.6491,197.93,197.82,180.23623864]
[1736379448172,9.95915692,197.85,197.82,180.23623864]
[1736379448477,9.95915692,197.84,197.82,180.23623864]
[1736379453940,29.95915692,197.83,197.82,81.6]
[1736379454146,42.59625692,197.83,197.76,81.6]
[1736379454451,9.95915692,197.77,197.76,220.1]
[1736379455247,20.0,197.77,197.76,220.1]
[1736379455455,29.95915692,197.77,197.76,220.1]
[1736379461996,31.57685692,197.77,197.76,81.6]
[1736379464272,33.81685692,197.77,197.76,81.6]
[1736379465477,33.81685692,197.77,197.67,220.1]
[1736379465880,9.95915692,197.73,197.67,220.1]
[1736379466585,9.95915692,197.72,197.67,220.1]
[1736379466963,9.95915692,197.69,197.67,220.1]
[1736379467268,9.95915692,197.68,197.67,220.1]
[1736379472305,9.95915692,197.69,197.67,220.1]
[1736379473602,9.95915692,197.74,197.67,220.1]
[1736379473786,1.6177,197.77,197.67,220.1]
[1736379474101,9.95915692,197.75,197.67,230.05915692]
[1736379474481,9.95915692,197.75,197.68,0.75853451]
[1736379476006,1.538,197.82,197.69,253.83604092]
[1736379476300,9.95915692,197.79,197.71,9.95915692]
[1736379476511,20.0,197.8,197.73,9.95915692]
[1736379476689,9.95915692,197.81,197.74,24.53518473]
[1736379476884,9.95915692,197.83,197.75,9.95915692]
[1736379477286,9.95915692,197.83,197.76,24.53509757]
[1736379478679,20.0,197.86,197.76,244.63509757]
[1736379478879,9.95915692,197.85,197.78,23.776884]
[1736379479227,9.95915692,197.85,197.78,24.53497955]
[1736379480116,9.95915692,197.85,197.78,244.63497955]
[1736379480283,9.95915692,197.85,197.78,243.876884]
[1736379480493,9.95915692,197.87,197.8,23.776884]
[1736379480888,9.95915692,197.87,197.8,24.53489339]
[1736379482312,9.95915692,197.87,197.8,23.776884]
[1736379483119,9.95915692,197.87,197.8,24.53492981]
[1736379483622,9.95915692,197.87,197.8,34.49408673]
[1736379484137,1.6654,197.92,197.8,254.59408673]
[1736379484302,9.95915692,197.88,197.8,253.83604092]
[1736379484630,9.95915692,197.88,197.82,23.776884]
[1736379485410,9.95915692,197.88,197.82,243.876884]
[1736379487719,9.95915692,197.86,197.82,220.1]
[1736379493130,29.95915692,197.88,197.82,220.1]
[1736379495042,20.0,197.88,197.83,23.776884]
[1736379495341,9.95915692,197.88,197.83,23.776884]
[1736379497718,9.95915692,197.88,197.82,220.1]
[1736379498138,9.95915692,197.88,197.83,23.776884]
[1736379498334,9.95915692,197.86,197.83,243.876884]
[1736379501338,9.95915692,197.88,197.83,243.876884]
[1736379502562,20.0,197.89,197.83,243.876884]
[1736379502720,12.6292,197.96,197.85,23.776884]
[1736379502916,9.95915692,197.94,197.87,23.776884]
[1736379503431,9.95915692,197.94,197.89,243.876884]
[1736379504842,9.95915692,197.92,197.89,243.876884]
[1736379505215,20.0,197.94,197.89,243.876884]
[1736379505444,29.95915692,197.94,197.89,243.876884]
[1736379515864,14.2863,197.97,197.89,243.876884]
[1736379516171,9.95915692,197.95,197.89,243.876884]
[1736379518351,14.2863,197.97,197.89,243.876884]
[1736379518543,9.95915692,197.95,197.89,243.876884]
[1736379522963,25.2505,198.02,197.91,243.876884]
[1736379522964,9.95915692,197.97,197.91,243.876884]
[1736379523574,9.95915692,197.97,197.93,23.776884]
[1736379523869,9.95915692,197.99,197.93,243.876884]
[1736379524069,29.95915692,197.99,197.93,243.876884]
[1736379524271,20.0,197.99,197.93,243.876884]
[1736379525471,20.0,198.02,197.93,243.876884]
[1736379528099,1.5735,198.03,197.95,23.776884]
[1736379528598,20.0,198.02,197.95,23.776884]
[1736379531301,20.0,198.02,197.95,243.876884]
[1736379532605,20.0,198.03,197.95,243.876884]
[1736379534099,12.6229,198.06,197.95,243.876884]
[1736379535403,12.6229,198.06,197.97,23.776884]
[1736379537406,12.6229,198.06,197.97,243.876884]
[1736379540086,20.0,198.03,197.97,243.876884]
[1736379562012,19.0,198.03,197.97,243.876884]
[1736379576254,26.95410464,198.03,197.97,243.876884]
[1736379576742,7.95410464,198.03,197.97,243.876884]
[1736379577151,7.95410464,198.05,197.97,243.876884]
[1736379577829,7.95410464,198.06,197.97,243.876884]
[1736379583049,7.95410464,198.07,197.97,243.876884]
[1736379583724,7.95410464,198.06,197.97,243.876884]
[1736379584333,7.95410464,198.06,197.99,243.876884]
[1736379585030,9.61200464,198.08,197.99,243.876884]
[1736379587145,7.95410464,198.08,197.99,243.876884]
[1736379588040,7.95410464,198.08,197.99,246.156884]
[1736379588574,20.0,198.07,197.99,246.156884]
[1736379590654,7.95410464,198.1,198.01,23.776884]
[1736379591158,7.95410464,198.1,198.03,243.876884]
[1736379592036,7.95410464,198.11,198.03,243.876884]
[1736379592944,1.6347,198.12,198.03,243.876884]
[1736379597762,9.80641562,198.07,198.03,243.876884]
[1736379600159,1.6347,198.12,198.03,243.876884]
[1736379600351,9.80641562,198.07,198.03,243.876884]
[1736379601148,9.80641562,198.08,198.03,243.876884]
[1736379608156,9.80641562,198.06,198.03,243.876884]
[1736379608473,9.80641562,198.04,198.03,243.876884]
[1736379611556,12.6183,198.13,198.03,243.876884]
[1736379611877,9.80641562,198.06,198.03,243.876884]
[1736379637695,9.80641562,198.06,198.03,220.1]
[1736379642397,9.80641562,198.08,198.03,220.1]
[1736379646898,7.95410464,198.1,198.04,23.776884]
[1736379647106,17.76052026,198.09,198.04,23.776884]
[1736379647803,9.80641562,198.09,198.04,23.776884]
[1736379648104,9.80641562,198.09,198.04,243.876884]
[1736379650589,9.80641562,198.09,198.05,0.22473336]
[1736379650991,9.80641562,198.09,198.04,243.876884]
[1736379651808,17.76052026,198.09,198.04,243.876884]
[1736379652309,9.80641562,198.09,198.04,243.876884]
[1736379662920,9.80641562,198.07,198.04,243.876884]
[1736379663614,17.76052026,198.09,198.04,243.876884]
[1736379664313,17.76052026,198.09,198.04,220.1]
[1736379674127,9.80641562,198.07,198.04,220.1]
[1736379689432,7.95410464,198.08,198.04,220.1]
[1736379689938,17.76052026,198.09,198.04,220.1]
[1736379704645,7.95410464,198.09,198.04,220.1]
[1736379708043,17.76052026,198.1,198.04,220.1]
[1736379717458,9.80641562,198.08,198.04,220.1]
[1736379722462,7.95410464,198.1,198.04,220.1]
[1736379722863,9.80641562,198.07,198.04,220.1]
[1736379724565,7.95410464,198.1,198.04,220.1]
[1736379724773,9.80641562,198.07,198.04,220.1]
[1736379738894,7.95410464,198.1,198.04,220.1]
[1736379739072,9.80641562,198.07,198.04,220.1]
[1736379740978,7.95410464,198.1,198.04,220.1]
[1736379741173,9.80641562,198.08,198.04,220.1]
[1736379741978,7.95410464,198.1,198.04,220.1]
[1736379742178,9.80641562,198.08,198.04,220.1]
[1736379744883,7.95410464,198.1,198.05,23.776884]
[1736379745075,9.80641562,198.09,198.05,23.776884]
[1736379746888,9.80641562,198.09,198.05,243.876884]
[1736379754191,7.95410464,198.15,198.05,243.876884]
[1736379754491,9.80641562,198.13,198.07,23.776884]
[1736379754796,9.80641562,198.13,198.07,25.996884]
[1736379758171,12.6137,198.2,198.07,246.096884]
[1736379758373,9.80641562,198.14,198.07,246.096884]
[1736379758572,9.80641562,198.14,198.09,23.776884]
[1736379760777,9.80641562,198.14,198.07,222.32]
[1736379761182,9.80641562,198.14,198.08,23.776884]
[1736379761981,9.80641562,198.14,198.08,243.876884]
[1736379767395,12.6137,198.2,198.08,243.876884]
[1736379767702,9.80641562,198.14,198.08,243.876884]
[1736379767883,12.6137,198.2,198.08,243.876884]
[1736379768081,9.80641562,198.14,198.08,220.1]
[1736379768416,9.80641562,198.12,198.08,220.1]
[1736379770602,9.80641562,198.14,198.09,243.876884]
[1736379783300,9.80641562,198.14,198.09,246.096884]
[1736379784003,9.80641562,198.15,198.09,246.096884]
[1736379784315,9.80641562,198.16,198.11,243.876884]
[1736379785892,9.80641562,198.17,198.11,243.876884]
[1736379786793,9.80641562,198.18,198.11,253.68329962]
[1736379786997,9.80641562,198.18,198.11,243.876884]
[1736379787211,20.0,198.21,198.11,253.68329962]
[1736379787411,9.80641562,198.19,198.13,243.876884]
[1736379788298,9.80641562,198.2,198.13,243.876884]
[1736379789013,9.80641562,198.19,198.13,243.876884]
[1736379790020,9.80641562,198.2,198.13,253.68329962]
[1736379790707,9.80641562,198.21,198.13,253.68329962]
[1736379790910,9.80641562,198.2,198.15,243.876884]
[1736379792619,7.8462,198.29,198.17,23.776884]
[1736379792809,9.80641562,198.23,198.18,222.32]
[1736379793121,9.80641562,198.23,198.19,243.876884]
[1736379793723,7.8462,198.29,198.19,243.876884]
[1736379793724,1.5907,198.29,198.19,243.876884]
[1736379793919,68.77021024,198.33,198.19,243.876884]
[1736379794117,9.80641562,198.3,198.23,243.876884]
[1736379794520,9.80641562,198.28,198.23,243.876884]
[1736379795813,60.8161056,198.33,198.23,243.876884]
[1736379796014,9.80641562,198.28,198.23,243.876884]
[1736379797710,60.8161056,198.33,198.23,243.876884]
[1736379797911,9.80641562,198.28,198.23,243.876884]
[1736379798127,60.8161056,198.33,198.23,243.876884]
[1736379798328,9.80641562,198.28,198.23,243.876884]
[1736379799729,9.80641562,198.29,198.23,243.876884]
[1736379803132,60.8161056,198.33,198.23,246.096884]
[1736379803340,9.80641562,198.29,198.23,246.096884]
[1736379804239,9.80641562,198.28,198.23,246.096884]
[1736379805736,60.8161056,198.33,198.23,246.096884]
[1736379805940,9.80641562,198.29,198.23,246.096884]
[1736379806737,60.8161056,198.33,198.23,246.096884]
[1736379806927,9.80641562,198.29,198.23,246.096884]
[1736379812022,60.8161056,198.33,198.23,255.90329962]
[1736379812223,9.80641562,198.3,198.23,255.90329962]
[1736379812423,9.80641562,198.29,198.23,246.096884]
[1736379818650,9.80641562,198.28,198.23,246.096884]
[1736379830742,60.8161056,198.33,198.23,246.096884]
[1736379830934,9.80641562,198.29,198.23,246.096884]
[1736379833259,60.8161056,198.33,198.23,255.90329962]
[1736379833652,9.80641562,198.3,198.23,255.90329962]
[1736379834553,9.80641562,198.31,198.23,255.90329962]
[1736379835334,9.80641562,198.31,198.25,23.776884]
[1736379835648,9.80641562,198.3,198.25,23.776884]
[1736379836330,9.80641562,198.3,198.24,23.776884]
[1736379836751,9.80641562,198.3,198.24,243.876884]
[1736379840838,60.8161056,198.33,198.24,253.68329962]
[1736379841162,9.80641562,198.31,198.24,253.68329962]
[1736379842938,9.80641562,198.3,198.24,243.876884]
[1736379843143,9.80641562,198.3,198.25,2.22]
[1736379844545,60.8161056,198.33,198.25,2.22]
[1736379844852,9.80641562,198.32,198.25,2.22]
[1736379845545,9.80641562,198.3,198.26,23.776884]
[1736379848760,9.80641562,198.3,198.26,243.876884]
[1736379853549,60.8161056,198.33,198.26,243.876884]
[1736379853750,9.80641562,198.31,198.26,243.876884]
[1736379857075,9.80641562,198.31,198.26,220.1]
[1736379860779,60.8161056,198.33,198.26,220.1]
[1736379861155,9.80641562,198.31,198.26,220.1]
[1736379863361,60.8161056,198.33,198.26,220.1]
[1736379863567,9.80641562,198.31,198.26,220.1]
[1736379873192,60.8161056,198.33,198.26,220.1]
[1736379873492,9.80641562,198.31,198.26,220.1]
[1736379875296,60.8161056,198.33,198.26,220.1]
[1736379875297,70.62252122,198.33,198.26,220.1]
[1736379879399,60.8161056,198.33,198.26,220.1]
[1736379879587,9.80641562,198.32,198.26,220.1]
[1736379884774,70.62252122,198.33,198.26,220.1]
[1736379889682,9.80641562,198.32,198.26,220.1]
[1736379893012,60.8161056,198.33,198.26,220.1]
[1736379893194,70.62252122,198.33,198.26,220.1]
[1736379896691,60.8161056,198.33,198.26,220.1]
[1736379897093,70.62252122,198.33,198.26,220.1]
[1736379904316,60.8161056,198.33,198.26,220.1]
[1736379904518,9.80641562,198.32,198.26,220.1]
[1736379911915,9.80641562,198.3,198.26,220.1]
[1736379917020,60.8161056,198.33,198.3,20.0]
[1736379917320,60.8161056,198.33,198.32,243.876884]
[1736379917502,60.8161056,198.33,198.32,246.096884]
[1736379918406,60.8161056,198.33,198.32,222.32]
[1736379927510,60.8161056,198.33,198.32,262.08409962]
[1736379927818,60.8161056,198.33,198.32,262.54389962]
[1736379928131,60.8161056,198.33,198.32,260.32389962]